bitfinex-derivatives/quotes_ETHF0:USTF0_20240830
["timestamp","ask_amount","ask_price","bid_price","bid_amount"]
[1725021032883,28.39103,2522.3,2521.7,3.43]
[1725021033084,0.39646,2522.0,2521.7,3.82648]
[1725021033290,0.3965,2521.7,2521.4,6.6378]
[1725021033494,0.39652,2521.6,2521.4,7.03433]
[1725021033692,0.39652,2521.6,2521.2,0.00595073]
[1725021033693,0.39656,2521.3,2521.2,0.00595073]
[1725021034087,5.35436,2521.3,2521.2,0.00595073]
[1725021034412,5.35436,2521.3,2520.0,1.38869]
[1725021034413,0.39666,2520.7,2520.4,0.3967]
[1725021034581,0.393,2521.2,2520.6,3.2078]
[1725021034779,0.39662,2521.0,2520.7,3.43]
[1725021034988,0.393,2521.2,2520.7,3.43]
[1725021034989,0.39662,2520.9,2520.7,3.43]
[1725021035491,4.3073329,2521.1,2520.5,0.00595073]
[1725021035492,4.3073329,2521.1,2520.5,3.83262073]
[1725021036181,0.39667,2520.6,2520.5,0.00595073]
[1725021036694,4.36387,2520.6,2520.5,0.00595073]
[1725021037291,14.11109962,2520.6,2519.6,3.5633]
[1725021037589,14.11109962,2520.6,2519.7,3.8268]
[1725021037590,0.39676,2520.1,2519.7,3.8268]
[1725021037783,3.2078,2520.4,2519.6,7.39012]
[1725021037981,3.2078,2520.4,2519.8,4.57]
[1725021037982,0.3967,2520.4,2519.8,4.57]
[1725021038183,3.2078,2520.4,2519.8,4.57]
[1725021038385,3.2078,2520.4,2520.1,0.39673]
[1725021038590,3.2078,2520.4,2519.8,4.57595073]
[1725021038591,3.2078,2520.4,2520.2,0.39673]
[1725021038783,27.4,2520.7,2520.2,3.2078]
[1725021038987,3.97984,2520.8,2520.2,3.2078]
[1725021039188,0.39765073,2521.1,2520.6,0.39666]
[1725021039189,0.39661,2521.0,2520.6,0.39666]
[1725021039383,0.39765073,2521.1,2520.5,0.39668]
[1725021039600,0.39765073,2521.1,2520.2,3.2078]
[1725021039601,4.42832655,2520.9,2520.2,3.2078]
[1725021039790,0.99163,2520.7,2519.9,3.2078]
[1725021039991,0.99163,2520.7,2519.8,0.00595073]
[1725021039992,0.39676,2520.0,2519.8,0.00595073]
[1725021040191,0.39675,2520.1,2519.8,0.40274073]
[1725021040489,0.39675,2520.1,2519.8,0.00595073]
[1725021040693,0.39673,2520.3,2519.8,0.00595073]
[1725021040890,0.39673,2520.3,2519.9,0.39677]
[1725021040891,0.39671,2520.3,2519.9,0.39677]
[1725021041198,3.60451,2520.4,2520.1,0.39674]
[1725021041493,0.3565,2520.8,2520.3,3.2078]
[1725021041703,3.60443,2520.9,2520.3,3.2078]
[1725021041888,3.2078,2520.9,2520.7,0.39665]
[1725021042089,3.2078,2520.9,2520.6,0.39666]
[1725021042398,3.2078,2520.9,2520.8,0.39663]
[1725021042693,0.00595073,2521.1,2521.0,0.3966]
[1725021043492,0.00595073,2521.1,2521.0,4.363]
[1725021043699,0.00595073,2521.1,2521.0,0.3966]
[1725021044096,0.00595073,2521.1,2520.9,3.2078]
[1725021044297,0.00595073,2521.1,2521.0,0.3966]
[1725021044502,0.00595073,2521.1,2520.9,3.60441]
[1725021044694,0.00595073,2521.1,2521.0,0.3966]
[1725021045198,0.00595073,2521.1,2520.9,3.60441]
[1725021045401,0.00595073,2521.1,2521.0,0.3966]
[1725021046193,0.00595073,2521.1,2520.9,3.2078]
[1725021046607,0.00595073,2521.1,2521.0,0.3966]
[1725021047294,0.00595073,2521.1,2521.0,4.363]
[1725021047497,0.00595073,2521.1,2520.9,3.2078]
[1725021047695,0.3966,2521.0,2520.9,3.2078]
[1725021047897,3.2078,2523.6,2521.2,3.2078]
[1725021048198,0.3687,2524.5,2523.5,4.57]
[1725021048404,0.3687,2524.5,2524.2,3.2078]
[1725021048405,4.2496258,2524.4,2524.2,3.2078]
[1725021048699,0.51095709,2525.5,2524.2,3.2078]
[1725021048898,3.2078,2526.2,2525.4,4.57]
[1725021049095,3.966,2527.0,2526.2,0.39577]
[1725021049289,3.2078,2528.8,2526.9,7.7778]
[1725021049597,3.2078,2528.8,2528.7,4.57]
[1725021049798,4.154731,2528.8,2528.7,4.57]
[1725021049993,3.2078,2529.5,2528.7,11.9022]
[1725021050294,0.2,2530.0,2528.7,11.9022]
[1725021050295,0.2,2530.0,2529.3,3.2078]
[1725021050497,3.2078,2532.0,2530.8,4.74]
[1725021050699,0.3687,2533.6,2531.1,3.2078]
[1725021050700,2.73,2531.2,2531.1,3.2078]
[1725021050904,2.73,2531.2,2530.8,3.2078]
[1725021051202,2.73,2531.2,2530.4,4.74]
[1725021051203,10.06403407,2531.2,2530.3,0.39514]
[1725021051392,3.2078,2531.1,2530.7,0.00592651]
[1725021051706,4.74,2532.0,2530.7,0.00592651]
[1725021051707,0.0033373,2535.9,2533.1,3.2078]
[1725021051891,39.618,2539.2,2530.8,3.948]
[1725021051892,0.39394,2538.1,2536.8,3.2078]
[1725021052088,20.99,2540.2,2536.8,3.2078]
[1725021052089,2.53604893,2540.7,2538.5,3.2078]
[1725021052300,3.2078,2540.9,2538.9,4.74]
[1725021052500,3.2078,2539.6,2538.9,3.2078]
[1725021052694,4.51553509,2540.0,2538.7,3.2078]
[1725021052903,3.961,2539.9,2538.4,3.2078]
[1725021053110,4.74,2538.6,2537.0,3.2078]
[1725021053407,4.74,2538.6,2534.4,0.98627]
[1725021053408,0.98273,2543.6,2540.0,0.3944]
[1725021053702,3.2078,2548.1,2545.9,0.3928]
[1725021053924,3.2078,2548.1,2542.0,1.96659]
[1725021053925,3.2078,2550.8,2549.1,3.2078]
[1725021054202,26.07302129,2551.8,2550.6,3.2078]
[1725021054405,26.07302129,2551.8,2549.2,0.7828]
[1725021054406,4.20853619,2551.8,2551.7,3.2078]
[1725021054595,4.20853619,2551.8,2549.4,5.88]
[1725021054596,13.69927352,2551.8,2551.5,3.2078]
[1725021054900,13.69927352,2551.8,2545.1,1.01952795]
[1725021054901,3.2078,2551.0,2545.8,0.98185]
[1725021055107,5.88,2548.4,2546.4,0.39264]
[1725021055311,0.0699,2547.4,2547.0,3.2078]
[1725021055600,0.0699,2547.4,2543.0,1.96588]
[1725021055601,5.88,2547.1,2539.1,5.88964737]
[1725021055803,5.88,2547.1,2537.7,4.1435499]
[1725021055804,3.2078,2539.5,2539.4,4.78035737]
[1725021055992,3.2078,2541.1,2539.4,2.39925]
[1725021056195,3.2078,2540.7,2538.5,3.2078]
[1725021056502,3.2078,2539.2,2537.5,3.2078]
[1725021056801,3.2078,2537.8,2535.7,3.2078]
[1725021057007,3.2078,2538.1,2537.8,1.19422]
[1725021057195,0.00589901,2539.7,2537.9,1.19422]
[1725021057196,3.2078,2538.5,2537.9,1.19422]
[1725021057398,3.2078,2538.0,2537.3,0.36315]
[1725021057700,44.0078,2537.4,2536.1,3.2078]
[1725021057906,3.2078,2536.6,2536.1,0.36315]
[1725021058196,3.2078,2536.2,2534.9,3.2078]
[1725021058402,3.2078,2535.3,2534.6,3.2078]
[1725021058589,3.2078,2535.3,2534.2,0.3944]
[1725021058590,3.2078,2534.8,2534.2,5.86807557]
[1725021058792,3.2078,2534.4,2533.2,3.2078]
[1725021058995,3.2078,2534.7,2533.8,3.2078]
[1725021058996,4.27066004,2534.7,2533.8,3.2078]
[1725021059199,3.2078,2534.9,2533.6,0.3952]
[1725021059392,0.00591168,2535.2,2533.9,3.2078]
[1725021059393,3.21371168,2535.2,2533.9,3.2078]
[1725021059600,3.2078,2534.5,2533.6,3.2078]
[1725021060019,0.98499,2537.7,2533.5,0.00591168]
[1725021060020,3.2078,2533.8,2533.5,0.00591168]
[1725021060302,40.8,2537.4,2533.5,4.24998725]
[1725021060303,3.2078,2534.1,2533.5,4.24998725]
[1725021060505,3.2078,2533.8,2532.5,3.2078]
[1725021060707,3.2078,2532.6,2531.5,3.2078]
[1725021060912,3.2078,2532.1,2531.5,4.24998725]
[1725021061098,3.2078,2532.1,2530.3,0.3952]
[1725021061099,3.2078,2531.8,2530.8,0.3952]
[1725021061404,3.2078,2531.7,2530.6,0.3952]
[1725021061595,40.8,2531.6,2531.5,0.00592417]
[1725021061791,41.92025336,2531.6,2531.5,0.00592417]
[1725021062202,40.8,2531.6,2531.5,8.20631142]
[1725021062395,0.98623,2534.6,2531.6,3.9496]
[1725021062396,3.2078,2532.6,2531.6,3.9496]
[1725021062601,3.2078,2532.2,2531.5,4.24998725]
[1725021062800,40.8,2532.1,2531.5,0.00592417]
[1725021063004,40.8,2532.1,2531.5,4.24406308]
[1725021063005,3.2078,2531.9,2531.5,4.24406308]
[1725021063195,3.2078,2531.9,2530.7,0.3952]
[1725021063400,3.2078,2531.6,2530.7,4.24406308]
[1725021063600,3.2078,2531.0,2530.7,4.24406308]
[1725021063902,0.43544437,2531.5,2530.8,3.9512]
[1725021064098,3.2078,2531.2,2530.9,0.00592417]
[1725021064295,3.2078,2531.2,2530.9,4.17e-06]
[1725021064500,8.14460415,2531.1,2530.9,4.17e-06]
[1725021064710,8.53963415,2531.1,2530.9,4.17e-06]
[1725021064906,3.9512,2531.0,2530.9,4.17e-06]
[1725021065205,3.9512,2531.0,2530.0,0.2]
[1725021065206,0.39507,2530.8,2530.0,0.2]
[1725021065414,3.2078,2530.1,2530.0,0.2]
[1725021065706,3.2078,2530.5,2530.0,4.44406308]
[1725021065909,3.2078,2530.5,2530.0,0.2]
[1725021066207,3.948,2531.7,2530.0,0.2]
[1725021066208,3.2078,2530.8,2530.1,3.952]
[1725021066503,0.82847071,2532.0,2530.0,4.44406308]
[1725021066504,0.00592417,2530.5,2530.0,4.44998725]
[1725021066707,0.00592417,2530.5,2530.4,3.60293]
[1725021066903,3.2078,2531.1,2530.4,3.952]
[1725021067097,3.2078,2531.1,2530.4,4.23813891]
[1725021067306,3.2078,2531.4,2530.4,4.23813891]
[1725021067500,3.2078,2531.1,2530.0,3.4078]
[1725021067707,3.2078,2530.3,2530.0,4.43813891]
[1725021067913,3.2078,2530.7,2530.0,0.2]
[1725021068100,0.00592417,2530.4,2530.0,4.43813891]
[1725021068503,3.21372417,2530.4,2530.0,4.43813891]
[1725021068806,1.230941,2530.3,2530.0,4.43813891]
[1725021069014,3.2078,2531.0,2530.0,1.23033891]
[1725021069304,3.2078,2530.1,2528.9,3.2078]
[1725021069508,3.2078,2530.1,2525.7,1.97927]
[1725021069509,3.2078,2529.3,2528.2,3.2078]
[1725021070006,4.51187151,2529.2,2528.2,4.23813891]
[1725021070211,3.2078,2529.1,2528.2,8.19253891]
[1725021070408,0.39531,2529.3,2528.5,3.2078]
[1725021070606,3.2078,2529.3,2528.5,3.2078]
[1725021070813,0.00592417,2528.9,2528.5,4.23813891]
[1725021071014,3.2078,2528.7,2528.4,0.00592417]
[1725021071306,3.2078,2528.7,2527.7,3.2078]
[1725021071506,4.16791001,2528.6,2527.7,1.03033891]
[1725021071924,3.2078,2528.7,2527.7,1.03033891]
[1725021072104,4.35469555,2528.6,2527.7,1.03033891]
[1725021072507,3.2078,2528.7,2527.9,0.00592417]
[1725021072816,0.00592417,2528.9,2527.9,4.63413891]
[1725021072817,4.35469555,2528.6,2527.9,4.63413891]
[1725021073021,3.2078,2528.1,2526.3,3.2078]
[1725021073204,3.2078,2527.5,2526.3,3.6038]
[1725021073404,3.2078,2527.8,2526.6,3.2078]
[1725021073600,3.2078,2528.5,2527.0,3.2078]
[1725021074002,3.2078,2528.2,2527.0,1.03033891]
[1725021074207,40.8,2528.8,2527.1,3.9568]
[1725021074208,3.34292957,2528.4,2527.1,3.9568]
[1725021074408,3.2078,2528.4,2527.7,0.39555]
[1725021074615,3.2078,2528.1,2527.7,1.03033278]
[1725021074803,3.2078,2528.2,2527.7,1.03033278]
[1725021075515,3.2078,2528.2,2527.7,1.42588278]
[1725021075516,3.21373613,2528.2,2527.7,1.42588278]
[1725021075817,3.21373613,2528.2,2527.7,1.03033278]
[1725021076115,3.21373613,2528.2,2527.7,4.98633278]
[1725021076314,0.00593613,2528.2,2527.8,0.39554]
[1725021076616,0.00593613,2528.2,2527.7,1.03033278]
[1725021076920,0.00593613,2528.2,2528.0,0.3955]
[1725021077105,0.00593613,2528.2,2528.1,0.39549]
[1725021077303,0.00593613,2528.2,2528.1,4.35069]
[1725021077519,3.2078,2528.9,2528.1,5.37508665]
[1725021077721,3.60317,2528.9,2528.1,1.41988665]
[1725021077904,0.39539,2528.8,2528.1,1.02439665]
[1725021078107,4.13585917,2528.8,2528.1,1.02439665]
[1725021078412,3.2078,2528.9,2528.1,1.02439665]
[1725021078413,0.3954,2528.7,2528.1,1.02439665]
[1725021078609,0.00593613,2528.7,2528.2,0.00593613]
[1725021078803,4.16185717,2528.6,2528.2,0.00593613]
[1725021079003,4.16185717,2528.6,2528.4,0.39543]
[1725021079204,0.00593613,2528.7,2528.3,7.163]
[1725021079411,0.00593613,2528.7,2528.4,3.9552]
[1725021079611,0.00593613,2528.7,2528.4,4.97959665]
[1725021080204,0.00593613,2528.7,2528.5,3.9552]
[1725021080617,0.00593613,2528.7,2528.6,3.9544]
[1725021080915,3.0338,2531.9,2529.6,3.2078]
[1725021081111,3.2078,2532.5,2531.4,9.1378]
[1725021081315,3.2078,2532.5,2531.7,3.2078]
[1725021081518,3.2078,2533.1,2532.0,3.2078]
[1725021081717,3.2078,2534.5,2533.0,3.2078]
[1725021082023,7.6287839,2534.9,2533.7,3.2078]
[1725021082312,7.6287839,2534.9,2532.7,3.2078]
[1725021082313,0.00592242,2534.0,2532.7,3.2078]
[1725021082515,3.2078,2532.8,2532.1,0.62318052]
[1725021082716,3.2078,2533.3,2532.2,3.2078]
[1725021083017,0.00592242,2532.7,2532.2,0.00592242]
[1725021083215,0.00592242,2532.7,2532.2,0.62910294]
[1725021083516,3.21372242,2532.7,2532.2,0.00592242]
[1725021083707,3.21372242,2532.7,2529.4,0.98819]
[1725021083708,3.2078,2532.4,2530.8,3.603]
[1725021083908,3.2078,2532.2,2531.4,3.2078]
[1725021084212,0.00592242,2532.7,2531.4,3.83098052]
[1725021084213,7.48647869,2532.3,2531.4,3.83098052]
[1725021084412,3.2078,2532.0,2531.4,0.62318052]
[1725021084604,4.20331871,2532.1,2530.2,3.2078]
[1725021084605,3.2078,2531.7,2530.2,3.2078]
[1725021084808,3.28315998,2531.9,2530.5,3.2078]
[1725021085020,3.28315998,2531.9,2528.7,0.396]
[1725021085021,3.2078,2530.9,2530.7,0.00592242]
[1725021085215,3.21372242,2531.2,2530.7,0.00592242]
[1725021085616,3.2078,2530.9,2530.7,0.00592242]
[1725021085812,3.2078,2530.9,2530.7,0.62910294]
[1725021086007,0.00592242,2531.2,2530.7,0.62910294]
[1725021086008,3.21372242,2531.2,2530.7,0.62910294]
[1725021086209,0.00592242,2531.2,2531.0,0.39504]
[1725021086513,7.11,2533.5,2531.0,0.39504]
[1725021086514,3.2078,2532.8,2531.8,0.39491]
[1725021086714,3.2078,2532.8,2531.1,0.3952]
[1725021086715,3.2078,2532.8,2531.7,3.2078]
[1725021086933,4.23735074,2533.3,2532.0,3.2078]
[1725021087112,3.2078,2533.9,2532.7,3.2078]
[1725021087312,3.2078,2534.4,2533.6,3.2078]
[1725021087507,3.2078,2534.4,2532.7,0.98693]
[1725021087508,0.00592242,2534.3,2534.2,0.39454]
[1725021087813,4.5400264,2535.6,2532.8,0.19668965]
[1725021087814,3.2078,2534.7,2533.2,3.2078]
[1725021088007,3.2078,2534.2,2533.2,3.2078]
[1725021088410,4.46908207,2534.6,2533.8,3.2078]
[1725021088606,3.2078,2534.7,2533.3,3.2078]
[1725021088806,3.2078,2534.7,2532.7,0.3952]
[1725021088807,4.12367526,2534.9,2533.9,3.21372242]
[1725021089008,45.26908207,2535.7,2533.9,0.00592242]
[1725021089009,0.39455,2534.1,2533.9,0.00592242]
[1725021089215,3.2078,2534.2,2533.1,0.3952]
[1725021089427,3.2078,2533.8,2532.7,0.3952]
[1725021089810,3.2078,2533.5,2532.7,0.3952]
[1725021090008,0.98612,2534.9,2532.7,0.3952]
[1725021090009,4.41937453,2533.7,2532.7,0.3952]
[1725021090213,0.00592242,2533.4,2532.9,3.2078]
[1725021090411,0.00592242,2533.4,2533.2,3.2078]
[1725021090617,3.2078,2534.8,2533.3,3.9472]
[1725021090919,0.3568,2538.6,2534.5,3.2078]
[1725021090920,3.2078,2535.4,2534.5,3.2078]
[1725021091110,3.2078,2535.1,2534.2,0.3952]
[1725021091422,3.2078,2534.8,2533.9,3.2078]
[1725021091722,40.8,2535.6,2534.1,0.00592242]
[1725021091723,3.2078,2534.5,2534.1,0.00592242]
[1725021091918,3.2078,2534.5,2533.0,0.3952]
[1725021091919,3.2078,2534.2,2532.9,0.3952]
[1725021092109,3.2078,2533.8,2532.9,0.3952]
[1725021092313,3.2078,2533.2,2532.2,3.2078]
[1725021092516,3.2078,2533.7,2532.7,0.39477]
[1725021092715,3.2078,2533.7,2532.3,0.79002]
[1725021092917,4.21490154,2534.3,2531.8,0.3952]
[1725021092918,3.2078,2532.8,2531.8,0.3952]
[1725021093215,3.2078,2532.8,2531.2,0.3864]
[1725021093216,3.2078,2532.5,2532.0,0.00592242]
[1725021093420,3.2078,2532.2,2532.0,0.00592242]
[1725021093920,0.39486,2532.1,2532.0,2.42e-06]
[1725021094122,8.60997204,2532.1,2532.0,2.42e-06]
[1725021094435,14.60997204,2532.1,2532.0,2.42e-06]
[1725021094825,15.59714204,2532.1,2532.0,2.42e-06]
[1725021095021,15.59714204,2532.1,2529.1,3.2078]
[1725021095022,3.2078,2531.6,2529.1,3.2078]
[1725021095236,3.2078,2530.3,2529.1,3.2078]
[1725021095433,3.2078,2530.0,2528.9,0.3952]
[1725021095721,0.39521,2529.9,2528.9,0.3952]
[1725021095917,0.39521,2529.9,2529.0,3.2078]
[1725021096225,0.00592242,2529.7,2529.1,0.00592242]
[1725021096727,3.2078,2529.6,2529.1,0.00592242]
[1725021097724,3.60307,2529.6,2529.1,0.00592242]
[1725021097925,0.39532,2529.2,2527.9,3.2078]
[1725021098123,3.60317,2528.9,2527.9,3.2078]
[1725021098322,3.2078,2528.9,2527.9,0.39552]
[1725021098524,0.3954,2528.7,2527.6,3.99937]
[1725021098824,3.2078,2528.6,2527.6,3.6038]
[1725021099125,3.2078,2528.1,2527.8,0.00592242]
[1725021099330,0.00592242,2528.4,2526.8,3.2078]
[1725021099331,3.21372242,2528.4,2527.1,3.2078]
[1725021099628,3.21372242,2528.4,2527.2,0.396]
[1725021099822,3.21372242,2528.4,2527.1,0.396]
[1725021099823,3.2078,2528.1,2527.1,0.396]
[1725021100024,3.2078,2527.8,2526.5,0.396]
[1725021100219,3.2078,2527.5,2526.5,0.396]
[1725021100429,0.00593484,2527.4,2526.9,0.00593484]
[1725021100823,3.2078,2527.2,2526.9,0.00593484]
[1725021101023,3.2078,2527.1,2526.9,0.00593484]
[1725021101536,4.51352245,2527.1,2526.9,0.00593484]
[1725021101718,3.9576,2527.1,2526.9,0.00593484]
[1725021102037,4.51352245,2527.1,2526.9,0.00593484]
[1725021102327,3.9576,2527.1,2526.9,0.00593484]
[1725021102529,4.35326,2527.0,2526.9,0.00593484]
[1725021102730,3.9576,2527.0,2525.8,3.99965]
[1725021102924,4.49799952,2527.0,2526.1,3.2078]
[1725021103132,0.00593484,2527.4,2526.8,0.39569]
[1725021103332,0.00593484,2527.4,2526.7,3.2078]
[1725021103527,3.2078,2529.2,2527.3,3.2078]
[1725021103731,3.2078,2530.0,2528.8,3.2078]
[1725021103922,3.2078,2530.0,2527.4,8.099]
[1725021103923,4.23340085,2529.8,2527.4,8.099]
[1725021104129,3.2078,2529.5,2528.8,3.2078]
[1725021104328,3.2078,2530.0,2528.8,3.2078]
[1725021104633,0.00593484,2529.7,2529.1,0.00593484]
[1725021104928,3.60897484,2529.7,2529.1,0.00593484]
[1725021105236,4.1654013,2529.6,2529.2,0.39532]
[1725021105428,3.2078,2530.9,2529.3,3.2078]
[1725021105627,3.2078,2530.3,2529.1,3.21373484]
[1725021106134,3.2078,2530.0,2529.1,3.60906484]
[1725021106332,3.92151923,2530.2,2529.6,3.2078]
[1725021106527,0.00593484,2529.8,2529.6,0.00593484]
[1725021106931,4.84e-06,2529.8,2529.7,4.34804]
[1725021107335,4.84e-06,2529.8,2529.7,13.55584]
[1725021107531,4.84e-06,2529.8,2529.7,9.9528]
[1725021107751,4.84e-06,2529.8,2529.7,10.34804]
[1725021108041,3.2078,2530.8,2529.7,9.9528]
[1725021108228,3.2078,2530.2,2529.6,0.00593484]
[1725021108429,3.60302,2529.9,2529.6,0.00593484]
[1725021108637,3.2078,2529.9,2529.6,0.00593484]
[1725021108836,3.60301,2529.9,2529.6,0.00593484]
[1725021109041,3.2078,2529.9,2529.6,0.00593484]
[1725021109342,0.00593484,2530.0,2529.7,3.9528]
[1725021109530,3.2078,2531.2,2529.8,3.2078]
[1725021109936,4.24231037,2531.1,2530.3,3.2078]
[1725021110130,3.60284,2531.0,2530.4,3.2078]
[1725021110331,3.2078,2531.0,2529.8,3.2078]
[1725021110538,4.20480403,2531.5,2530.8,3.2078]
[1725021110737,4.20480403,2531.5,2530.0,0.98798]
[1725021110738,3.2078,2532.1,2531.3,0.39498]
[1725021110938,0.00593484,2531.4,2531.3,0.39499]
[1725021111142,3.2078,2532.5,2531.3,9.9504]
[1725021111441,3.2078,2532.5,2531.9,3.2078]
[1725021111646,3.60266,2532.2,2531.3,3.2078]
[1725021111955,3.2078,2531.7,2531.3,3.2078]
[1725021112442,4.51108614,2532.1,2530.6,0.3952]
[1725021112443,3.60278,2531.4,2531.2,0.00593484]
[1725021112743,3.2078,2531.5,2531.2,0.00593484]
[1725021113044,0.39497,2531.4,2531.2,0.00593484]
[1725021113339,0.98748,2531.3,2530.1,3.2078]
[1725021113535,4.40749312,2531.4,2530.4,3.2078]
[1725021113536,3.2078,2531.2,2530.4,3.2078]
[1725021113738,3.2078,2531.2,2530.4,6.0]
[1725021113739,7.72199261,2531.2,2530.4,6.0]
[1725021113941,42.77384,2532.8,2530.4,6.0]
[1725021113942,3.2078,2532.4,2531.0,3.2078]
[1725021114240,3.2078,2531.8,2531.4,0.00593484]
[1725021114642,0.00593484,2532.0,2531.5,3.9504]
[1725021114855,0.00593484,2532.0,2531.6,0.39494]
[1725021115137,0.00593484,2532.0,2531.5,3.9496]
[1725021115342,0.00593484,2532.0,2531.8,0.39491]
[1725021115535,0.00593484,2532.0,2531.7,3.2078]
[1725021115735,0.00593484,2532.0,2531.9,0.3949]
[1725021116036,3.2078,2532.7,2531.8,3.9496]
[1725021116236,3.2078,2532.7,2532.0,3.2078]
[1725021116639,3.2078,2532.7,2531.7,3.2078]
[1725021116843,3.2078,2532.7,2531.4,0.00593484]
[1725021116844,3.2078,2532.1,2531.4,0.00593484]
[1725021117341,0.39491,2531.8,2531.4,0.00593484]
[1725021117541,4.4742744,2532.0,2530.8,3.603]
[1725021117542,3.2078,2531.5,2530.8,0.3952]
[1725021117736,3.60276,2531.5,2530.8,0.3952]
[1725021117940,3.2078,2530.9,2530.1,3.2078]
[1725021118137,3.2078,2530.9,2528.3,1.97731]
[1725021118138,3.2078,2530.5,2529.8,3.2078]
[1725021118340,3.2078,2530.5,2529.0,6.6871]
[1725021118341,3.2078,2530.2,2529.2,3.2078]
[1725021118546,0.00593484,2530.0,2529.4,0.00593484]
[1725021119045,3.2078,2529.7,2529.4,0.00593484]
[1725021119443,0.39527,2529.6,2529.4,0.00593484]
[1725021119744,3.21373484,2530.0,2529.4,0.00593484]
[1725021120041,3.60305,2529.7,2529.4,0.00593484]
[1725021120344,0.39527,2529.5,2529.4,0.00593484]
[1725021120545,8.4271684,2529.6,2528.2,3.2078]
[1725021120844,0.39537,2528.9,2528.2,3.2078]
[1725021121041,3.2078,2529.0,2528.2,3.2078]
[1725021121249,4.4735684,2529.5,2528.7,0.3954]
[1725021121545,7.12,2531.4,2528.3,3.9544]
[1725021121546,4.84e-06,2529.4,2529.3,0.3953]
[1725021121734,3.2078,2530.8,2529.3,9.6038]
[1725021121940,3.60288,2530.8,2530.1,3.2078]
[1725021122134,45.13734768,2531.2,2529.3,0.396]
[1725021122135,3.2078,2530.2,2529.3,0.396]
[1725021122344,3.2078,2530.2,2529.6,3.2078]
[1725021122539,3.2078,2530.2,2529.3,0.7913]
[1725021122736,40.8,2531.2,2529.5,0.00593484]
[1725021122737,3.2078,2529.9,2529.5,0.00593484]
[1725021122936,3.2078,2529.6,2529.5,0.00593484]
[1725021123141,3.21373484,2530.0,2529.5,0.00593484]
[1725021123357,0.00593484,2530.0,2529.6,3.9528]
[1725021123542,7.12,2532.1,2529.5,6.00593484]
[1725021123543,44.0078,2531.2,2530.3,0.39514]
[1725021123739,3.2078,2531.5,2530.4,3.603]
[1725021123950,3.2078,2531.5,2530.8,3.2078]
[1725021124152,3.952,2532.6,2531.1,3.2078]
[1725021124153,3.2078,2531.7,2531.1,3.2078]
[1725021124445,3.2078,2532.4,2531.7,0.39492]
[1725021124655,3.2078,2532.4,2531.1,3.2078]
[1725021124656,3.2078,2532.4,2531.5,3.2078]
[1725021124840,3.2078,2531.9,2531.1,0.40095484]
[1725021125040,3.2078,2531.6,2531.1,0.00593484]
[1725021125749,0.39507,2530.9,2530.1,0.3952]
[1725021126047,3.2078,2530.5,2529.9,3.2078]
[1725021126249,3.2078,2530.5,2528.0,7.12]
[1725021126250,3.2078,2530.1,2529.2,0.3952]
[1725021126443,4.0292999,2530.4,2530.0,0.39518]
[1725021126648,4.0292999,2530.4,2529.2,0.3952]
[1725021126649,3.2078,2530.2,2529.2,0.3952]
[1725021126951,0.00593484,2530.0,2529.4,0.00593484]
[1725021127336,4.40427726,2529.9,2529.4,0.00593484]
[1725021127541,7.61207726,2529.9,2529.4,0.00593484]
[1725021127741,0.00593484,2530.0,2529.5,3.9528]
[1725021127944,0.00593484,2530.0,2529.5,3.2078]
[1725021128148,4.84e-06,2530.0,2529.9,3.60301]
[1725021128356,3.2078,2531.6,2529.9,3.2078]
[1725021128651,3.2078,2531.6,2531.0,0.39504]
[1725021128849,3.2078,2531.3,2530.6,0.39509]
[1725021129040,3.2078,2531.3,2530.1,3.2078]
[1725021129248,3.2078,2532.2,2531.2,3.2078]
[1725021129543,7.4853,2533.6,2531.8,3.2078]
[1725021129544,3.2078,2532.9,2531.8,3.2078]
[1725021129739,0.3653,2533.6,2531.9,3.2078]
[1725021129740,3.2078,2532.6,2531.9,3.2078]
[1725021129940,3.2078,2532.6,2531.4,0.00593484]
[1725021130148,0.98678,2533.1,2531.4,0.00593484]
[1725021130149,3.2078,2532.0,2531.4,0.00593484]
[1725021130541,3.2078,2532.0,2530.4,0.3952]
[1725021130542,3.2078,2531.5,2530.4,0.3952]
[1725021130844,3.2078,2531.5,2530.0,3.603]
[1725021130845,3.2078,2530.9,2530.0,0.39519]
[1725021131046,3.2078,2530.6,2529.7,0.39523]
[1725021131242,3.2078,2530.3,2529.6,3.2078]
[1725021131446,3.2078,2530.8,2529.6,3.603]
[1725021131653,4.30358672,2530.5,2529.9,0.00592253]
[1725021131839,3.60299,2530.0,2528.9,3.2078]
[1725021132042,7.50546419,2530.2,2528.9,3.2078]
[1725021132341,7.43727112,2529.9,2528.9,3.2078]
[1725021132744,3.2078,2529.6,2529.2,0.39531]
[1725021132947,3.2078,2529.6,2529.1,0.40124253]
[1725021133148,3.2078,2530.2,2529.3,3.2078]
[1725021133446,3.2078,2530.2,2529.1,0.00592253]
[1725021133637,3.2078,2529.8,2529.1,0.00592253]
[1725021134045,3.2078,2530.2,2529.5,0.39526]
[1725021134235,3.2078,2530.2,2529.1,0.00592253]
[1725021134437,4.11595727,2530.1,2529.5,0.39526]
[1725021134747,3.2078,2529.9,2529.1,0.40192253]
[1725021135049,3.2078,2529.6,2529.1,0.00592253]
[1725021135252,3.2078,2529.2,2528.2,0.396]
[1725021135455,3.2078,2528.7,2527.9,0.396]
[1725021135639,3.2078,2528.9,2528.1,3.2078]
[1725021135844,3.2078,2528.8,2527.7,0.381]
[1725021136043,3.2078,2528.8,2527.8,0.396]
[1725021136348,3.2078,2528.5,2528.0,0.00592253]
[1725021136544,0.00592253,2528.6,2528.4,0.39543]
[1725021136747,0.00592253,2528.6,2528.0,0.00592253]
[1725021136943,0.00592253,2528.6,2528.1,0.39549]
[1725021137154,4.16768555,2528.5,2528.0,0.00592253]
[1725021137447,0.00592253,2528.6,2528.3,0.39544]